fUSD/lending_fUSD_20250515
["ID","MTS","AMOUNT","RATE_DAILY","PERIOD"]
[361193276,1747330242945,-400.0,0.00011544,2]
[361193277,1747330242954,-400.0,0.00011544,2]
[361193278,1747330242963,-400.0,0.00011544,2]
[361193279,1747330242975,-400.0,0.00011544,2]
[361193280,1747330242984,-400.0,0.00011544,2]
[361193281,1747330242993,-400.0,0.00011544,2]
[361193282,1747330243003,-73.33275369,0.00011544,2]
[361193284,1747330244243,-326.66724631,0.00011544,2]
[361193285,1747330244254,-400.0,0.00011544,2]
[361193286,1747330244264,-400.0,0.00011544,2]
[361193287,1747330244274,-400.0,0.00011544,2]
[361193288,1747330244284,-400.0,0.00011544,2]
[361193289,1747330244294,-400.0,0.00011544,2]
[361193290,1747330244303,-400.0,0.00011544,2]
[361193291,1747330244312,-400.0,0.00011544,2]
[361193292,1747330244322,-400.0,0.00011544,2]
[361193293,1747330244331,-400.0,0.00011544,2]
[361193294,1747330244342,-400.0,0.00011544,2]
[361193295,1747330244351,-400.0,0.00011544,2]
[361193296,1747330244361,-400.0,0.00011544,2]
[361193297,1747330244371,-400.0,0.00011544,2]
[361193298,1747330244380,-400.0,0.00011545,2]
[361193299,1747330244390,-400.0,0.00011545,2]
[361193300,1747330244399,-500.0,0.00011555,2]
[361193301,1747330244417,-250.0,0.00011613,2]
[361193302,1747330244429,-170.64077926,0.00011718,2]
[361193303,1747330244439,-615.11,0.00011738,2]
[361193304,1747330244449,-856.40348701,0.00011785,2]
[361193305,1747330244459,-1029.32065354,0.00011789,2]
[361193306,1747330244469,-756.58931909,0.00011789,2]
[361193307,1747330244481,-400.0,0.00011817,2]
[361193308,1747330244491,-513.08440089,0.00011817,2]
[361193309,1747330244500,-311.05440369,0.00011817,2]
[361193310,1747330244513,-88.94559631,0.00011817,2]
[361193311,1747330244523,-400.0,0.00011817,2]
[361193312,1747330244533,-38.60960496,0.00011817,2]
[361193313,1747330244554,-192.13293029,0.00011817,2]
[361193314,1747330244563,-500.0,0.00011817,2]
[361193315,1747330244573,-400.0,0.00011817,2]
[361193316,1747330244583,-363.89991368,0.00011817,2]
[361193317,1747330244592,-400.0,0.00011817,2]
[361193318,1747330244602,-400.0,0.00011817,2]
[361193319,1747330244612,-400.0,0.00011817,2]
[361193320,1747330244622,-400.0,0.00011817,2]
[361193321,1747330244631,-400.0,0.00011817,2]
[361193322,1747330244641,-400.0,0.00011817,2]
[361193323,1747330244651,-400.0,0.00011817,2]
[361193324,1747330244660,-400.0,0.00011817,2]
[361193325,1747330244670,-400.0,0.00011817,2]
[361193326,1747330244682,-336.88,0.00011817,2]
[361193327,1747330244691,-400.0,0.00011817,2]
[361193328,1747330244701,-400.0,0.00011817,2]
[361193329,1747330244710,-400.0,0.00011817,2]
[361193330,1747330244721,-500.0,0.00011817,2]
[361193331,1747330244734,-500.0,0.00011817,2]
[361193332,1747330244744,-400.0,0.00011817,2]
[361193333,1747330244755,-289.1292053,0.00011817,2]
[361193334,1747330244764,-400.0,0.00011817,2]
[361193335,1747330244774,-400.0,0.00011817,2]
[361193336,1747330244784,-400.0,0.00011817,2]
[361193337,1747330244793,-400.0,0.00011817,2]
[361193338,1747330244803,-500.0,0.00011817,2]
[361193339,1747330244813,-518.04243425,0.00011817,2]
[361193340,1747330244823,-151.75625116,0.00011817,2]
[361193341,1747330244832,-400.0,0.00011817,2]
[361193342,1747330244845,-215.49300907,0.00011817,2]
[361193343,1747330244855,-400.0,0.00011817,2]
[361193344,1747330244865,-157.31255902,0.00011817,2]
[361193345,1747330245051,-242.68744098,0.00011817,2]
[361193346,1747330245061,-500.0,0.00011817,2]
[361193347,1747330245070,-400.0,0.00011817,2]
[361193348,1747330245080,-400.0,0.00011817,2]
[361193349,1747330245089,-400.0,0.00011817,2]
[361193350,1747330245099,-235.05872054,0.00011817,2]
[361193351,1747330245122,-164.94127946,0.00011817,2]
[361193352,1747330245131,-393.61,0.00011817,2]
[361193353,1747330245144,-196.72,0.00011817,2]
[361193354,1747330245154,-400.0,0.00011817,2]
[361193355,1747330245164,-400.0,0.00011817,2]
[361193356,1747330245174,-400.0,0.00011817,2]
[361193357,1747330245183,-400.0,0.00011817,2]
[361193358,1747330245193,-262.42872054,0.00011817,2]
[361193359,1747330245256,-144.9659208,0.00011817,2]
[361193360,1747330245265,-400.0,0.00011817,2]
[361193361,1747330245275,-240.31,0.00011817,2]
[361193362,1747330245284,-400.0,0.00011817,2]
[361193363,1747330245294,-400.0,0.00011817,2]
[361193364,1747330245304,-41.23160036,0.00011817,2]
[361193365,1747330245315,-358.76839964,0.00011817,2]
[361193366,1747330245325,-400.0,0.00011817,2]
[361193367,1747330245335,-400.0,0.00011817,2]
[361193368,1747330245345,-127.69095617,0.00011817,2]
[361193372,1747330245958,-372.30904383,0.00011817,2]
[361193373,1747330245969,-250.83528695,0.00011817,2]
[361193374,1747330245993,-149.16471305,0.00011817,2]
[361193375,1747330246004,-199.89,0.00011817,2]
[361193376,1747330246014,-400.0,0.00011817,2]
[361193377,1747330246024,-400.0,0.00011817,2]
[361193378,1747330246034,-400.0,0.00011817,2]
[361193379,1747330246043,-400.0,0.00011817,2]
[361193380,1747330246054,-400.0,0.00011817,2]
[361193381,1747330246064,-400.0,0.00011817,2]
[361193382,1747330246073,-400.0,0.00011817,2]
[361193383,1747330246083,-400.0,0.00011817,2]
[361193384,1747330246092,-400.0,0.00011817,2]
[361193385,1747330246102,-400.0,0.00011817,2]
[361193386,1747330246111,-400.0,0.00011817,2]
[361193387,1747330246121,-400.0,0.00011817,2]
[361193388,1747330246130,-400.0,0.00011817,2]
[361193389,1747330246140,-400.0,0.00011817,2]
[361193390,1747330246149,-400.0,0.00011817,2]
[361193391,1747330246164,-400.0,0.00011817,2]
[361193392,1747330246174,-214.40531931,0.00011817,2]
[361193393,1747330246184,-404.07375405,0.00011817,2]
[361193394,1747330246193,-218.10824312,0.00011817,2]
[361193395,1747330246203,-400.0,0.00011817,2]
[361193396,1747330246212,-400.0,0.00011817,2]
[361193397,1747330246222,-400.0,0.00011817,2]
[361193398,1747330246233,-400.0,0.00011817,2]
[361193399,1747330246243,-400.0,0.00011817,2]
[361193400,1747330246253,-400.0,0.00011817,2]
[361193401,1747330246263,-400.0,0.00011817,2]
[361193402,1747330246273,-400.0,0.00011817,2]
[361193403,1747330246283,-400.0,0.00011817,2]
[361193404,1747330246294,-500.0,0.00011817,2]
[361193405,1747330246304,-400.0,0.00011817,2]
[361193406,1747330246314,-400.0,0.00011817,2]
[361193407,1747330246323,-400.0,0.00011817,2]
[361193409,1747330246333,-400.0,0.00011817,2]
[361193411,1747330246343,-305.30495824,0.00011817,2]
[361193414,1747330246352,-400.0,0.00011817,2]
[361193416,1747330246362,-400.0,0.00011817,2]
[361193418,1747330246372,-400.0,0.00011817,2]
[361193420,1747330246382,-400.0,0.00011817,2]
[361193422,1747330246392,-400.0,0.00011817,2]
[361193424,1747330246401,-400.0,0.00011817,2]
[361193426,1747330246411,-400.0,0.00011817,2]
[361193428,1747330246420,-400.0,0.00011817,2]
[361193430,1747330246430,-400.0,0.00011817,2]
[361193432,1747330246440,-226.4502185,0.00011817,2]
[361193434,1747330246450,-400.0,0.00011817,2]
[361193436,1747330246460,-400.0,0.00011817,2]
[361193438,1747330246469,-400.0,0.00011817,2]
[361193440,1747330246480,-411.61782437,0.00011817,2]
[361193442,1747330246490,-400.0,0.00011817,2]
[361193444,1747330246500,-220.28176846,0.00011817,2]
[361193446,1747330246509,-400.0,0.00011817,2]
[361193448,1747330246519,-400.0,0.00011817,2]
[361193450,1747330246529,-175.37,0.00011817,2]
[361193452,1747330246539,-174.9711035,0.00011817,2]
[361193455,1747330246556,-225.0288965,0.00011817,2]
[361193457,1747330246566,-400.0,0.00011817,2]
[361193459,1747330246575,-400.0,0.00011817,2]
[361193461,1747330246584,-400.0,0.00011817,2]
[361193463,1747330246594,-400.0,0.00011817,2]
[361193465,1747330246603,-400.0,0.00011817,2]
[361193467,1747330246613,-400.0,0.00011817,2]
[361193469,1747330246622,-400.0,0.00011817,2]
[361193471,1747330246632,-400.0,0.00011817,2]
[361193473,1747330246642,-400.0,0.00011817,2]
[361193475,1747330246651,-400.0,0.00011817,2]
[361193477,1747330246661,-400.0,0.00011817,2]
[361193479,1747330246671,-235.26953165,0.00011817,2]
[361193481,1747330246680,-400.0,0.00011817,2]
[361193483,1747330246690,-400.0,0.00011817,2]
[361193485,1747330246699,-400.0,0.00011817,2]
[361193487,1747330246709,-151.43616046,0.00011817,2]
[361193493,1747330246755,-248.56383954,0.00011817,2]
[361193495,1747330246765,-400.0,0.00011817,2]
[361193497,1747330246775,-400.0,0.00011817,2]
[361193499,1747330246784,-400.0,0.00011817,2]
[361193501,1747330246793,-400.0,0.00011817,2]
[361193503,1747330246803,-400.0,0.00011817,2]
[361193505,1747330246813,-400.0,0.00011817,2]
[361193507,1747330246822,-230.95096556,0.00011817,2]
[361193509,1747330246834,-288.87,0.00011817,2]
[361193511,1747330246843,-190.67821855,0.00011817,2]
[361193513,1747330246861,-209.32178145,0.00011817,2]
[361193515,1747330246870,-400.0,0.00011817,2]
[361193518,1747330246881,-400.0,0.00011817,2]
[361193519,1747330246890,-400.0,0.00011817,2]
[361193522,1747330246900,-400.0,0.00011817,2]
[361193524,1747330246910,-400.0,0.00011817,2]
[361193526,1747330246921,-500.0,0.00011817,2]
[361193528,1747330246932,-400.0,0.00011817,2]
[361193530,1747330246941,-400.0,0.00011817,2]
[361193532,1747330246950,-400.0,0.00011817,2]
[361193534,1747330246960,-400.0,0.00011817,2]
[361193536,1747330246969,-400.0,0.00011817,2]
[361193538,1747330246980,-400.0,0.00011817,2]
[361193540,1747330246989,-102.12220225,0.00011817,2]
[361193543,1747330247006,-297.87779775,0.00011817,2]
[361193545,1747330247016,-339.26219316,0.00011817,2]
[361193547,1747330247027,-60.73780684,0.00011817,2]
[361193549,1747330247036,-202.33,0.00011817,2]
[361193551,1747330247046,-400.0,0.00011817,2]
[361193553,1747330247054,-400.0,0.00011817,2]
[361193555,1747330247064,-400.0,0.00011817,2]
[361193557,1747330247073,-200.0,0.00011817,2]
[361193559,1747330247082,-200.0,0.00011817,2]
[361193561,1747330247091,-400.0,0.00011817,2]
[361193563,1747330247101,-400.0,0.00011817,2]
[361193565,1747330247110,-400.0,0.00011817,2]
[361193567,1747330247119,-400.0,0.00011817,2]
[361193569,1747330247129,-400.0,0.00011817,2]
[361193571,1747330247138,-228.91,0.00011817,2]
[361193573,1747330247147,-400.0,0.00011817,2]
[361193574,1747330247155,-400.0,0.00011817,2]
[361193575,1747330247164,-138.6727498,0.00011817,2]
[361193576,1747330247175,-261.3272502,0.00011817,2]
[361193577,1747330247184,-400.0,0.00011817,2]
[361193578,1747330247193,-400.0,0.00011817,2]
[361193579,1747330247202,-400.0,0.00011817,2]
[361193580,1747330247211,-400.0,0.00011817,2]
[361193581,1747330247220,-38.6727498,0.00011817,2]
[361193647,1747330489078,150.0,0.00011576,7]
[361193677,1747331177446,170.53,8.672e-05,2]
[361193678,1747331182323,357.77,0.00021945,30]
[361193681,1747331254828,1605.35,8.98e-05,2]
[361193682,1747331280766,358.99,0.00027397,120]
[361193699,1747331431974,-832.12017,0.00010832,2]
[361193701,1747331431983,-237.28,0.00010886,2]
[361193702,1747331431991,-243.05108142,0.00010897,2]
[361193703,1747331432000,-394.44874868,0.00010944,2]
[361193704,1747331432102,-605.55125132,0.00010944,2]
[361193705,1747331432112,-1605.35,0.00011244,2]
[361193706,1747331432122,-243.05108142,0.00011253,2]
[361193707,1747331432132,-182.23,0.00011291,2]
[361193708,1747331432142,-182.23,0.00011294,2]
[361193709,1747331432151,-182.23,0.00011297,2]
[361193710,1747331432161,-182.23,0.000113,2]
[361193711,1747331432171,-1200.0,0.00011302,2]
[361193712,1747331432180,-182.23,0.00011303,2]
[361193713,1747331432190,-182.23,0.00011306,2]
[361193714,1747331432200,-182.23,0.00011309,2]
[361193715,1747331432211,-182.23,0.00011312,2]
[361193716,1747331432224,-182.23,0.00011315,2]
[361193717,1747331432234,-182.23,0.00011318,2]
[361193718,1747331432244,-182.23,0.00011321,2]
[361193719,1747331432254,-182.23,0.00011324,2]
[361193720,1747331432264,-182.23,0.00011327,2]
[361193721,1747331432274,-163.22,0.00011327,2]
[361193722,1747331432283,-182.23,0.0001133,2]
[361193723,1747331432293,-300.0,0.00011332,2]
[361193724,1747331432303,-182.23,0.00011333,2]
[361193725,1747331432313,-182.23,0.00011336,2]
[361193726,1747331432322,-300.0,0.00011336,2]
[361193727,1747331432331,-182.23,0.00011339,2]
[361193728,1747331432341,-182.23,0.00011342,2]
[361193730,1747331432351,-182.23,0.00011345,2]
[361193732,1747331432361,-150.0,0.00011345,2]
[361193734,1747331432370,-182.23,0.00011348,2]
[361193736,1747331432380,-1783.54,0.00011356,2]
[361193738,1747331432390,-926.18,0.00011433,2]
[361193740,1747331432400,-1259.75,0.00011449,2]
[361193742,1747331432409,-200.0,0.00011449,2]
[361193744,1747331432419,-250.0,0.00011457,2]
[361193746,1747331432428,-211.88,0.00011527,2]
[361193748,1747331432437,-1443.59,0.00011576,2]
[361193750,1747331432447,-243.05108142,0.00011608,2]
[361193752,1747331432456,-791.94,0.0001164,2]
[361193754,1747331432466,-13941.40087391,0.0001165,2]
[361193756,1747331432478,-704.41414524,0.0001165,2]
[361193758,1747331432489,-9254.18498085,0.0001165,2]
[361193760,1747331432499,-16834.9,0.00011689,2]
[361193762,1747331432508,-47.72592264,0.00011708,2]
[361193767,1747331432549,-615.34407736,0.00011708,2]
[361193769,1747331432559,-200.0,0.00011817,2]
[361193771,1747331432569,-151.0,0.00011817,2]
[361193773,1747331432578,-151.0,0.00011817,2]
[361193775,1747331432587,-600.33682124,0.00011899,2]
[361193777,1747331432597,-250.0,0.00011915,2]
[361193779,1747331432605,-200.0,0.00011935,2]
[361193781,1747331432615,-235.0,0.00011947,2]
[361193783,1747331432624,-250.0,0.00011975,2]
[361193785,1747331432634,-500.0,0.00012,2]
[361193787,1747331432644,-200.0,0.00012034,2]
[361193789,1747331432652,-250.0,0.00012038,2]
[361193791,1747331432662,-150.99,0.00012087,2]
[361193793,1747331432671,-200.0,0.00012096,2]
[361193795,1747331432681,-165.89,0.00012172,2]
[361193797,1747331432690,-769.03216059,0.00012312,2]
[361193799,1747331432702,-230.96783941,0.00012312,2]
[361193801,1747331432711,-159.32,0.00012361,2]
[361193803,1747331432721,-198.34688559,0.000124,2]
[361193843,1747331437935,-11.65311441,0.000124,2]
[361193844,1747331437945,-151.0,0.000124,2]
[361193845,1747331437955,-151.0,0.000124,2]
[361193846,1747331437964,-93.34688559,0.00012432,2]
[361193847,1747331438040,-1041.1,0.00012432,2]
[361193848,1747331438052,-545.55311441,0.00012432,2]
[361193849,1747331438061,-20.46827518,0.000127,4]
[361193850,1747331438147,-268.19027311,0.000127,4]
[361193851,1747331438159,-11.34145171,0.000127,4]
[361193852,1747331438168,-151.0,0.00012703,2]
[361193853,1747331438178,-200.0,0.00012703,2]
[361193854,1747331438188,-105.52354829,0.00012703,2]
[361194023,1747331440135,-151.0,0.00012703,2]
[361194025,1747331440145,-151.0,0.00012703,2]
[361194026,1747331440155,-47.5327782,0.00012703,2]
[361194027,1747331440165,-151.0,0.00012703,2]
[361194028,1747331440174,-155.0,0.00012703,2]
[361194029,1747331440185,-151.0,0.00012703,2]
[361194031,1747331440194,-719.52358209,0.00012703,2]
[361194033,1747331440204,-668.65185757,0.00012703,2]
[361194034,1747331440214,-207.4,0.00012703,2]
[361194035,1747331440228,-303.0345973,0.00012799,2]
[361194036,1747331440237,-1000.0,0.000128,2]
[361194037,1747331440247,-270.645,0.000128,2]
[361194038,1747331440257,-3940.1955,0.000128,2]
[361194039,1747331440266,-2500.0,0.000128,2]
[361194040,1747331440276,-600.0,0.000128,4]
[361194041,1747331440285,-605.27145529,0.000128,2]
[361194042,1747331440295,-250.0,0.00012813,2]
[361194043,1747331440305,-163.59,0.0001285,2]
[361194045,1747331440315,-926.18,0.00012863,2]
[361194047,1747331440324,-1000.0,0.000129,2]
[361194049,1747331440333,-35919.366,0.000129,2]
[361194050,1747331440342,-56805.01773218,0.000129,2]
[361194051,1747331440354,-261.29,0.000129,2]
[361194052,1747331440369,-2030.77341549,0.000129,2]
[361194053,1747331440380,-9533.75649422,0.000129,2]
[361194054,1747331440411,-500.0,0.000129,2]
[361194055,1747331443072,-5257.7669528,0.000129,2]
[361194056,1747331443083,-756.62311964,0.000129,2]
[361194130,1747331446334,-480.5258277,0.000129,2]
[361194131,1747331446346,-76490.95,0.000129,2]
[361194132,1747331446388,-1384.99049141,0.000129,2]
[361194212,1747331549060,-226.55737387,0.0001,2]
[361194213,1747331558133,-223.44262613,0.0001,2]
[361194214,1747331574662,474.49827375,0.00023287,30]
[361194215,1747331633747,150.0,0.00012247,7]
[361194216,1747331722893,531.3034208,0.00012,7]
[361194217,1747331998127,-500.0,0.00012,2]
[361194218,1747332031992,300.38,0.00011952,2]
[361194219,1747332047836,890.3,0.00011917,2]
[361194221,1747332081551,162.61,0.00011902,2]
[361194222,1747332127691,157.71,0.00011903,2]
[361194223,1747332128112,157.71,0.00011908,2]
[361194224,1747332128343,157.71,0.00011912,2]
[361194225,1747332128577,157.71,0.00011916,2]
[361194226,1747332128797,157.71,0.0001192,2]
[361194227,1747332128993,157.71,0.00011925,2]
[361194228,1747332129202,157.71,0.00011929,2]
[361194229,1747332129446,157.71,0.00011933,2]
[361194230,1747332129663,157.71,0.00011937,2]
[361194231,1747332129838,157.71,0.00011942,2]
[361194232,1747332130036,157.71,0.00011946,2]
[361194233,1747332130247,157.71,0.0001195,2]
[361194234,1747332130471,157.71,0.00011954,2]
[361194235,1747332130660,157.71,0.00011959,2]
[361194236,1747332130861,157.71,0.00011963,2]
[361194237,1747332138021,327.32,0.00011913,2]
[361194238,1747332183233,4230.29737387,0.00011896,2]
[361194244,1747332331862,-163.71,9.921e-05,2]
[361194245,1747332335259,-197.82568275,9.921e-05,2]
[361194246,1747332336846,-216.49954808,9.921e-05,2]
[361194247,1747332343813,-288.54506422,9.921e-05,2]
[361194248,1747332350741,-197.12970495,9.921e-05,2]
[361194249,1747332352908,-197.62947041,9.921e-05,2]
[361194250,1747332358859,-260.63275127,9.921e-05,2]
[361194251,1747332364668,-94.94777832,9.921e-05,2]
[361194253,1747332489689,168.66,9.288e-05,2]
[361194278,1747332632156,-250.0,0.00010913,2]
[361194279,1747332632166,-282.843849,0.00011477,2]
[361194280,1747332632491,-1359.37,0.00011535,2]
[361194281,1747332632514,-571.29,0.00011575,2]
[361194282,1747332632533,-150.0,0.00011721,2]
[361194283,1747332632543,-1200.0,0.00011721,2]
[361194284,1747332632552,-300.0,0.00011721,2]
[361194285,1747332632561,-57827.29927753,0.00011722,2]
[361194286,1747332632573,-17667.30072247,0.00011722,2]
[361194287,1747332632583,-1459.58,0.00011765,2]
[361194288,1747332632592,-479.7067,0.00011796,2]
[361194289,1747332632603,-1000.0,0.00011889,2]
[361194290,1747332632616,-19669.70262613,0.00011896,2]
[361194291,1747332632626,-250.0,0.00012004,2]
[361194292,1747332632636,-250.0,0.00012004,2]
[361194293,1747332632646,-250.0,0.00012039,2]
[361194294,1747332632655,-272.67,0.00012042,2]
[361194295,1747332632665,-200.0,0.00012047,2]
[361194296,1747332632674,-519.32,0.0001218,2]
[361194297,1747332632684,-1616.92,0.00012185,2]
[361194298,1747332632694,-1385.35,0.00012283,2]
[361194299,1747332632703,-166.66,0.00012317,2]
[361194300,1747332632712,-687.47,0.00012341,2]
[361194301,1747332632722,-200.0,0.000126,4]
[361194302,1747332632731,-500.0,0.000127,4]
[361194303,1747332632740,-207.4,0.00012782,2]
[361194304,1747332632750,-2500.0,0.00012786,2]
[361194305,1747332632759,-544.74430977,0.00012788,2]
[361194306,1747332632769,-1608.4771,0.00012789,2]
[361194307,1747332632778,-1000.0,0.00012789,2]
[361194308,1747332632787,-181.11938237,0.0001279,2]
[361194309,1747332632798,-823.45652285,0.0001279,2]
[361194310,1747332632807,-7420.2344,0.000128,2]
[361194311,1747332632816,-800.0,0.000128,4]
[361194312,1747332632826,-166.34680962,0.00012853,2]
[361194313,1747332632835,-300.0,0.00012871,2]
[361194314,1747332632845,-305.17965619,0.00012883,2]
[361194315,1747332632855,-151.0,0.00012883,2]
[361194316,1747332632864,-151.0,0.00012883,2]
[361194317,1747332632874,-551.63474627,0.00012883,2]
[361194318,1747332632883,-668.65185757,0.00012883,2]
[361194319,1747332632893,-157.08893105,0.00012883,2]
[361194320,1747332632903,-200.0,0.00012883,2]
[361194321,1747332632913,-364.21034663,0.00012884,2]
[361194322,1747332632922,-168279.26532527,0.00012884,2]
[361194323,1747332637393,-10389.22980001,0.00012884,2]
[361194324,1747332637502,-61622.41399703,0.00012884,2]
[361194325,1747332637515,-21285.72581033,0.00012884,2]
[361194326,1747332637526,-181.45898956,0.00012885,2]
[361194327,1747332637535,-1119.09217191,0.00012885,2]
[361194328,1747332637544,-1119.09217191,0.00012885,2]
[361194329,1747332637553,-1119.09217191,0.00012885,2]
[361194330,1747332637562,-1119.09217191,0.00012885,2]
[361194331,1747332637572,-1119.09217191,0.00012885,2]
[361194332,1747332637581,-1119.09217191,0.00012885,2]
[361194333,1747332637591,-1119.09217191,0.00012885,2]
[361194334,1747332637601,-1119.09217191,0.00012885,2]
[361194335,1747332637615,-1119.09217191,0.00012885,2]
[361194337,1747332637624,-1119.09217191,0.00012885,2]
[361194338,1747332637633,-1119.09217191,0.00012885,2]
[361194339,1747332637643,-1119.09217191,0.00012885,2]
[361194340,1747332637652,-1119.09217191,0.00012885,2]
[361194341,1747332637661,-1119.09217191,0.00012885,2]
[361194343,1747332637670,-1119.09217191,0.00012885,2]
[361194345,1747332637679,-1119.09217191,0.00012885,2]
[361194347,1747332637688,-1119.09217191,0.00012885,2]
[361194348,1747332637698,-1119.09217191,0.00012885,2]
[361194350,1747332637708,-1119.09217191,0.00012885,2]
[361194352,1747332637717,-1119.09217191,0.00012885,2]
[361194354,1747332637726,-1119.09217191,0.00012885,2]
[361194356,1747332637735,-1119.09217191,0.00012885,2]
[361194358,1747332637744,-1119.09217191,0.00012885,2]
[361194360,1747332637754,-1119.09217191,0.00012885,2]
[361194362,1747332637763,-1119.09217191,0.00012885,2]
[361194364,1747332637773,-232.93886003,0.00012885,2]
[361194367,1747332637785,-886.15331188,0.00012885,2]
[361194369,1747332637794,-742.25588892,0.00012885,2]
[361194372,1747332637809,-376.83628299,0.00012885,2]
[361194374,1747332637818,-1119.09217191,0.00012885,2]
[361194377,1747332637827,-1119.09217191,0.00012885,2]
[361194379,1747332637836,-1119.09217191,0.00012885,2]
[361194381,1747332637845,-234.51931976,0.00012885,2]
[361194411,1747332638145,-884.57285215,0.00012885,2]
[361194413,1747332638154,-1119.09217191,0.00012885,2]
[361194415,1747332638164,-490.94711168,0.00012885,2]
[361194430,1747332638302,-628.14506023,0.00012885,2]
[361194432,1747332638312,-1119.09217191,0.00012885,2]
[361194435,1747332638321,-641.38545508,0.00012885,2]
[361194466,1747332640294,-477.70671683,0.00012885,2]
[361194467,1747332640304,-1119.09217191,0.00012885,2]
[361194468,1747332640314,-784.41125298,0.00012885,2]
[361194469,1747332640325,-287.05670596,0.00012885,2]
[361194470,1747332640337,-47.62421297,0.00012885,2]
[361194471,1747332640347,-1119.09217191,0.00012885,2]
[361194472,1747332640357,-1119.09217191,0.00012885,2]
[361194473,1747332640367,-1119.09217191,0.00012885,2]
[361194474,1747332640377,-1119.09217191,0.00012885,2]
[361194475,1747332640387,-1119.09217191,0.00012885,2]
[361194476,1747332640397,-1119.09217191,0.00012885,2]
[361194477,1747332640407,-1119.09217191,0.00012885,2]
[361194478,1747332640419,-1119.09217191,0.00012885,2]
[361194479,1747332640429,-1119.09217191,0.00012885,2]
[361194480,1747332640439,-1119.09217191,0.00012885,2]
[361194481,1747332640449,-1119.09217191,0.00012885,2]
[361194482,1747332640460,-1119.09217191,0.00012885,2]
[361194483,1747332640470,-1119.09217191,0.00012885,2]
[361194484,1747332640481,-1119.09217191,0.00012885,2]
[361194485,1747332640491,-1119.09217191,0.00012885,2]
[361194486,1747332640502,-1119.09217191,0.00012885,2]
[361194487,1747332640512,-1119.09217191,0.00012885,2]
[361194488,1747332640522,-1119.09217191,0.00012885,2]
[361194489,1747332640532,-1119.09217191,0.00012885,2]
[361194490,1747332640543,-1119.09217191,0.00012885,2]
[361194491,1747332640552,-1119.09217191,0.00012885,2]
[361194492,1747332640562,-1119.09217191,0.00012885,2]
[361194493,1747332640571,-1119.09217191,0.00012885,2]
[361194494,1747332640582,-1119.09217191,0.00012885,2]
[361194495,1747332640592,-1119.09217191,0.00012885,2]
[361194496,1747332640602,-1119.09217191,0.00012885,2]
[361194497,1747332640615,-1119.09217191,0.00012885,2]
[361194498,1747332640625,-1119.09217191,0.00012885,2]
[361194499,1747332640635,-1119.09217191,0.00012885,2]
[361194500,1747332640645,-5558.54498623,0.00012885,2]
[361194501,1747332640657,-5558.54498623,0.00012885,2]
[361194502,1747332640667,-5558.54498623,0.00012885,2]
[361194503,1747332640677,-3976.80871454,0.00012885,2]
[361194506,1747332640833,-94.42775763,0.00012885,2]
[361194507,1747332640858,-1487.30851406,0.00012885,2]
[361194508,1747332640867,-2611.85439813,0.00012885,2]
[361194536,1747332643540,-1412.0,0.00012885,2]
[361194554,1747332643994,-1534.6905881,0.00012885,2]
[361194555,1747332644004,-5558.54498623,0.00012885,2]
[361194556,1747332644014,-5558.54498623,0.00012885,2]
[361194557,1747332644023,-5558.54498623,0.00012885,2]
[361194558,1747332644032,-5558.54498623,0.00012885,2]
[361194559,1747332644042,-5558.54498623,0.00012885,2]
[361194560,1747332644051,-5558.54498623,0.00012885,2]